{"text_format":"1","workbook":"xlsx","n_sheets":3,"sheets":["List","Translations","Validation"],"not_rendered":{"charts":0,"images":0,"macros":1,"external_links":0,"defined_names":28,"comments":0,"pivot_tables":0},"unopened":[],"bounds":{"document_bytes":16777216,"sheet_cells":100000,"rows_first":2000,"rows_last":500,"rows_between":2000,"halvings":0,"cell_chars":16384,"cell_head_chars":4096},"cells_cut":0,"cells_raw":0,"read":"whole","date_system":"1900"}

{"sheet":"List","index":0,"n_rows":12,"n_cols":32,"rows_kept":12,"cut":false,"hidden":false,"merged":[]}
[]
[]
[{"$f":"Translations!DA2","v":"Presentar a la UE*"},{"$f":"Translations!DB2","v":"Id 1"},{"$f":"Translations!DC2","v":"Id 2"},{"$f":"Translations!DD2","v":"Identificación del proyecto"},{"$f":"Translations!DE2","v":"Tipos de animales*"},{"$f":"Translations!DF2","v":"Especifique \"otros\""},{"$f":"Translations!DG2","v":"Nº de animales*"},{"$f":"Translations!DH2","v":"Reutilización*"},{"$f":"Translations!DI2","v":"Lugar de nacimiento (no primates)"},{"$f":"Translations!DJ2","v":"Lugar de nacimiento (primates)"},{"$f":"Translations!DW2","v":"Tipo de colonia de primates:colonia autosostenida"},{"$f":"Translations!DK2","v":" Generación (primates)"},{"$f":"Translations!DL2","v":"Estatus genético *"},{"$f":"Translations!DM2","v":"Creación de una nueva línea geneticamente alterada*"},{"$f":"Translations!DN2","v":"Finalidades*"},{"$f":"Translations!DO2","v":"Especifique \"otros\""},{"$f":"Translations!DP2","v":"Tipos de legislación"},{"$f":"Translations!DQ2","v":"Especifique \"otros\""},{"$f":"Translations!DR2","v":"Origen de la legislación"},{"$f":"Translations!DS2","v":"Severidad *"},{"$f":"Translations!DT2","v":"Custom Severity"},{"$f":"Translations!DU2","v":"Explicación de las alarmas"},{"$f":"Translations!DV2","v":"Comentarios"},{"$f":"Translations!DX2","v":"Método de muestreo tisular"},{"$f":"Translations!DY2","v":"Especifique \"otro método\""},{"$f":"Translations!EF2","v":"Severidad del genotipado"},{"$f":"Translations!DZ2","v":"Explicación no genotipados"},{"$f":"Translations!EA2","v":"Campo libre"},{"$f":"Translations!EB2","v":"Campo CCAA 1"},{"$f":"Translations!EC2","v":"Campo CCAA 1"},{"$f":"Translations!ED2","v":"Campo centro 1"},{"$f":"Translations!EE2","v":"Campo centro 2"}]
["[Y] Sí",null,null,"ES360570215601/18/EDUC FORM07/EDUC01/MALP01","[A1] Ratón (Mus musculus)",null,6,"[N] No","[O1] Animales nacidos en la UE en un establecimiento registrado",null,null,null,"[GS1] No alterado genéticamente ","[N] No","[PE42-1] Enseñanza superior",null,null,null,null,"[SV2] Leve [como máximo]",null,null,1]
["[Y] Sí",null,null,"ES360570215601/18/EDUC FORM07/EDUC01/MALP01","[A2] Rata (Rattus norvegicus)",null,2,"[N] No","[O1] Animales nacidos en la UE en un establecimiento registrado",null,null,null,"[GS1] No alterado genéticamente ","[N] No","[PE42-1] Enseñanza superior",null,null,null,null,"[SV2] Leve [como máximo]",null,null,2]
["[Y] Sí",null,null,"ES360570215601/21/FUN01/FIS01/JAL01","[A1] Ratón (Mus musculus)",null,141,"[N] No","[O1] Animales nacidos en la UE en un establecimiento registrado",null,null,null,"[GS3] Genéticamente alterado con fenotipo patológico","[N] No","[PG43] Mantenimiento de colonias de animales genéticamente alterados establecidas, no utilizados en otros procedimientos",null,null,null,null,"[SV2] Leve [como máximo]",null,null,3,"[ST1] Tejido sobrante de la identificación de un animal por perforación auricular"]
["[Y] Sí",null,null,"ES360570215601 22FUN.01FIS.[02]LCGM01","[A2] Rata (Rattus norvegicus)",null,12,"[N] No","[O1] Animales nacidos en la UE en un establecimiento registrado",null,null,null,"[GS1] No alterado genéticamente ","[N] No","[PR104] (Utilización reglamentaria/Toxicidad y seguridad) Ensayos de seguridad en el ámbito de la alimentación humana y animal",null,"[LT8] Legislación sobre los alimentos para animales, incluída la relativa a la seguridad de los animales diana, de los trabajadores y del entorno",null,"[LO1] Legislación que cumple los requisitos de la UE","[SV4] Severa",null,null,4]
["[Y] Sí",null,null,"ES360570215601/21/FUN01/BIOL.AN.08/LFF/01","[A2] Rata (Rattus norvegicus)",null,203,"[N] No","[O1] Animales nacidos en la UE en un establecimiento registrado",null,null,null,"[GS1] No alterado genéticamente ","[N] No","[PB3] (Investigación básica) Sistema nervioso",null,null,null,null,"[SV3] Moderada",null,null,5]
["[Y] Sí",null,null,"ES360570215601/21/INVMED.02/OUTROS04/SMM01","[A1] Ratón (Mus musculus)",null,28,"[N] No","[O1] Animales nacidos en la UE en un establecimiento registrado",null,null,null,"[GS1] No alterado genéticamente ","[N] No","[PT28] (Investigación traslacional y aplicada) Enfermedades inmunológicas humanas",null,null,null,null,"[SV3] Moderada",null,null,6]
["[Y] Sí",null,null,"ES360570215601/22/FUN.01/.PAT.[05]/C/AGF01","[A1] Ratón (Mus musculus)",null,115,"[N] No","[O1] Animales nacidos en la UE en un establecimiento registrado",null,null,null,"[GS3] Genéticamente alterado con fenotipo patológico","[N] No","[PT21] (Investigación traslacional y aplicada) Cáncer humano",null,null,null,null,"[SV3] Moderada",null,null,7,null,null,null,"Cepa mutante procedentes de otro centro"]
["[Y] Sí",null,null,"ES360570215601/22/INV.MED02/OUT04/SGP01","[A1] Ratón (Mus musculus)",null,4,"[N] No","[O1] Animales nacidos en la UE en un establecimiento registrado",null,null,null,"[GS1] No alterado genéticamente ","[N] No","[PT28] (Investigación traslacional y aplicada) Enfermedades inmunológicas humanas",null,null,null,null,"[SV2] Leve [como máximo]",null,null,8]
["[Y] Sí",null,null,"ES360570215601/22/INV.MED02/OUT04/SGP01","[A1] Ratón (Mus musculus)",null,20,"[N] No","[O1] Animales nacidos en la UE en un establecimiento registrado",null,null,null,"[GS1] No alterado genéticamente ","[N] No","[PT28] (Investigación traslacional y aplicada) Enfermedades inmunológicas humanas",null,null,null,null,"[SV3] Moderada",null,null,9]

{"sheet":"Translations","index":1,"n_rows":79,"n_cols":136,"rows_kept":79,"cut":false,"hidden":true,"merged":[[2,104,2,106],[2,108,2,109]]}
[null,"Combined Purposes",null,null,null,null,null,null,null,"Code","Type of animal",null,"Code + Type",null,null,null,null,null,null,"Countries",null,null,"Origin of legislation ",null,null,null,null,null,null,"Type of legislation",null,null,null,null,null,null,null,"Severity",null,null,null,"Y/N",null,"Place of birth",null,null,null,null,null,null,"Non-human primate - source",null,null,null,null,null,null,"Non-human primate - generation",null,null,null,"Genetic status",null,null,null,null,null,null,"Reporting Years",null,null,"Level 1","Basic Research","Translational and Applied Research","Regulatory use and routine production"," ","Quality control (including batch safety and potency testing)","Routine production by product type","Toxicity and other safety testing including pharmacology",null,"Acute toxicity testing methods","Repeated dose toxicity","Ecotoxicity","Methods of tissue sampling",null,null,null,null,null,null,"Field 1 dropdown values","Field 2 dropdown values","Field 3 dropdown values","Field 4 dropdown values","Field 5 dropdown values","Field 6 dropdown values","Id1 Dropdown values","Id2 Dropdown values","Id3 Dropdown values","Other Species Dropdown values","Other Purpose Dropdown values","Other Legislation Dropdown values","Custom severity Dropdown values",null,"Table Headers"]
[{"$f":"MID(B2,1,6)","v":"[PB1] "},"[PB1] (Investigación básica) Oncología",null,null,null,null,null,null,null,"A1","Ratón (Mus musculus)",null,{"$f":"CONCATENATE(\"[\",J2,\"] \",K2)","v":"[A1] Ratón (Mus musculus)"},null,null,null,null,null,null,"Austria",null,null,"[LO1] Legislación que cumple los requisitos de la UE",null,null,null,null,null,null,"[LT1] Legislación sobre medicamentos de uso humano",null,null,null,null,null,null,null,"[SV1] Sin recuparación",null,null,null,"[N] No",null,"[O1] Animales nacidos en la UE en un establecimiento de un criador autorizado",null,null,null,null,null,null,"[NHPO1] Primates nacidos en el establecimiento de un criador autorizado en la UE",null,null,null,null,null,null,"[NHPG1] F0",null,null,null,"[GS1] No alterado genéticamente ",null,null,null,null,null,null,2021,null,null,"Investigación básica","[PB1] Oncología","[PT21] Cáncer humano","Control de calidad (incluidos los ensayos de seguridad y potencia de los lotes)"," ","[PR61] Ensayos de seguridad de los lotes","[PR51] Productos sanguíneos","Aguda y subaguda",null,"[PR81] LD50, LC50","[PR87] Hasta 28 días","[PR98] Toxicidad aguda","[IG1] Genotipado invasivo: muestra de sangre",null,null,null,null,null,null,"Animales homocigotos",null,null,null,null,null,null,null,null,null,null,null,null,null,"Presentar a la UE*","Id 1","Id 2","Identificación del proyecto","Tipos de animales*","Especifique \"otros\"","Nº de animales*","Reutilización*","Lugar de nacimiento (no primates)","Lugar de nacimiento (primates)"," Generación (primates)","Estatus genético *","Creación de una nueva línea geneticamente alterada*","Finalidades*","Especifique \"otros\"","Tipos de legislación","Especifique \"otros\"","Origen de la legislación","Severidad *","Custom Severity","Explicación de las alarmas","Comentarios","Tipo de colonia de primates:colonia autosostenida","Método de muestreo tisular","Especifique \"otro método\"","Explicación no genotipados","Campo libre","Campo CCAA 1","Campo CCAA 1","Campo centro 1","Campo centro 2","Severidad del genotipado"]
["[PB2] ","[PB2] (Investigación básica) Sistema cardiovascular, sanguíneo y linfático",null,null,null,null,null,null,null,"A2","Rata (Rattus norvegicus)",null,"[A2] Rata (Rattus norvegicus)",null,null,null,null,null,null,"Belgica",null,null,"[LO2] Legislación que cumple únicamente requisitos nacionales (dentro de la UE)",null,null,null,null,null,null,"[LT2] Legislación sobre productos de uso veterinario y sus residuos",null,null,null,null,null,null,null,"[SV2] Leve [como máximo]",null,null,null,"[Y] Sí",null,"[O2] Animales nacidos en la UE pero no en un establecimiento de un criador autorizado",null,null,null,null,null,null,"[NHPO2] Primates nacidos en la UE pero no en el establecimiento de un criador autorizado, y primates nacidos en el resto de Europa",null,null,null,null,null,null,"[NHPG2] F1",null,null,null,"[GS2] Genéticamente alterado sin fenotipo patológico",null,null,null,null,null,null,2022,null,null,"Investigación traslacional y aplicada","[PB2] Sistema cardiovascular, sanguíneo y linfático","[PT22] Enfermedades  infecciosas humanas ","[PR71] Otros ensayos (eficacia y tolerancia)"," ","[PR62] Ensayos de pirogenicidad","[PR52] Anticuerpos monoclonales, únicamente por el método de ascitis","[PR84] Irritación/Corrosión cutánea",null,"[PR82] Otros métodos letales","[PR88] 29 - 90 dias","[PR99] Toxicidad crónica","[IG2] Genotipado invasivo: biopsia de oreja",null,null,null,null,null,null,"Genotipado en otro centro",null,null,null,null,null,null,null,null,null,null,null,null,null,"Specific userform1 translations",null,null,null,"Specific userform1 translations"]
["[PB3] ","[PB3] (Investigación básica) Sistema nervioso",null,null,null,null,null,null,null,"A3","Cobaya (Cavia porcellus)",null,"[A3] Cobaya (Cavia porcellus)",null,null,null,null,null,null,"Bulgaria",null,null,"[LO3] Legislación que únicamente cumple requisitos ajenos a la UE",null,null,null,null,null,null,"[LT3] Legislación sobre aparatos médicos",null,null,null,null,null,null,null,"[SV3] Moderada",null,null,null,null,null,"[O3] Animales nacidos en el resto de Europa",null,null,null,null,null,null,"[NHPO3] Primates nacidos en Asia",null,null,null,null,null,null,"[NHPG3] F2 ó siguientes",null,null,null,"[GS3] Genéticamente alterado con fenotipo patológico",null,null,null,null,null,null,2023,null,null,"Utilización reglamentaria y producción rutinaria","[PB3] Sistema nervioso","[PT23] Enfermedades cardiovasculares humanas","Ensayos de toxicidad y otros ensayos de de seguridad, incluida la farmacología"," ","[PR63] Ensayos de potencia de los lotes","[PR54] Anticuerpos monoclonales y policlonales (excluido el método de ascitis)","[PR85] Sensibilización cutánea",null,"[PR83] Métodos no letales","[PR89] Más de 90 dias","[PR100] Toxicidad reproductiva ","[IG3] Genotipado invasivo: biopsia de cola",null,null,null,null,null,null,null,null,null,null,null,null,null,null,null,null,null,null,null,null,"Anterior",null,null,null,"Fin principal (Nivel1):"]
["[PB4] ","[PB4] (Investigación básica) Sistema respiratorio",null,null,null,null,null,null,null,"A4","Hamster sirio (Mesocricetus auratus)",null,"[A4] Hamster sirio (Mesocricetus auratus)",null,null,null,null,null,null,"Croacia",null,null,null,null,null,null,null,null,null,"[LT4] Legislación sobre productos químicos industriales",null,null,null,null,null,null,null,"[SV4] Severa",null,null,null,null,null,"[O4] Animales nacidos en el resto del mundo",null,null,null,null,null,null,"[NHPO4] Primates nacidos en América",null,null,null,null,null,null,null,null,null,null,null,null,null,null,null,null,null,2024,null,null,"[PE40] Protección del medio ambiente natural en interés de la salud o el bienestar de los sers humanos o de los animales","[PB4]  Sistema respiratorio","[PT24] Enfermedades nerviosas y mentales humanas","Producción rutinaria por tipo de producto"," ","[PR64] Otros controles de calidad","[PR53] Otros productos","[PR86] Irritación/Corrosión ocular",null,null,null,"[PR101] Actividad endocrina","[IG6] Genotipado invasivo: biopsia de aleta",null,null,null,null,null,null,null,null,null,null,null,null,null,null,null,null,null,null,null,null,"Fila actual",null,null,null,"Fin Nivel 2:"]
["[PB5] ","[PB5] (Investigación básica) Sistema gastrointestinal, hígado incluido.",null,null,null,null,null,null,null,"A5","Hamster chino (Cricetulus griseus)",null,"[A5] Hamster chino (Cricetulus griseus)",null,null,null,null,null,null,"Chipre",null,null,null,null,null,null,null,null,null,"[LT5] Legislación sobre productos fitosanitarios",null,null,null,null,null,null,null,null,null,null,null,null,null,null,null,null,null,null,null,null,"[NHPO5] Primates nacidos en África",null,null,null,null,null,null,null,null,null,null,null,null,null,null,null,null,null,2025,null,null,"[PS41] Preservación de las especies","[PB5] Sistema gastrointestinal, hígado incluido.","[PT25] Enfermedades respiratorias humanass",null,null,null,null,"Toxicidad por dosis repetidas",null,null,null,"[PR102] Bioacumulación","[IG4] Genotipado invasivo: recorte de dedos",null,null,null,null,null,null,null,null,null,null,null,null,null,null,null,null,null,null,null,null,"Continue",null,null,null,"Fin Nivel 3:"]
["[PB6] ","[PB6] (Investigación básica) Sistema músculo-esquelético",null,null,null,null,null,null,null,"A6","Gerbo de Mongolia (Meriones unguiculatus)",null,"[A6] Gerbo de Mongolia (Meriones unguiculatus)",null,null,null,null,null,null," República Checa",null,null,null,null,null,null,null,null,null,"[LT6] Legislación sobre biocidas",null,null,null,null,null,null,null,null,null,null,null,null,null,null,null,null,null,null,null,null,"[NHPO6] Primates nacidos en otros lugares",null,null,null,null,null,null,null,null,null,null,null,null,null,null,null,null,null,2026,null,null,"[PE42-1] Enseñanza superior ","[PB6] Sistema músculo-esquelético","[PT26]  Enfermedades gastrointestinales humanas, incluidas las hepáticas",null,null,null,null,"[PR90] Carcinogenicidad",null,null,null,"[PR103] Otros","[IG5] Genotipado invasivo: otros métodos",null,null,null,null,null,null,null,null,null,null,null,null,null,null,null,null,null,null,null,null,"Siguiente",null,null,null,"Fin Nivel 4:"]
["[PB7] ","[PB7] (Investigación básica) Sistema inmunitario",null,null,null,null,null,null,null,"A7","Otros roedores (otros Rodentia)",null,"[A7] Otros roedores (otros Rodentia)",null,null,null,null,null,null,"Dinamarca",null,null,null,null,null,null,null,null,null,"[LT7] Legislación alimentaria, incluída la relativa a los materiales en contacto con alimentos",null,null,null,null,null,null,null,null,null,null,null,null,null,null,null,null,null,null,null,null,null,null,null,null,null,null,null,null,null,null,null,null,null,null,null,null,null,null,2027,null,null,"[PE42-2] Formación para la adquisición, mantenimiento o mejora de las aptitudes profesionales","[PB7] Sistema inmunitario","[PT27] Enfermedades musculoesqueléticas humanas",null,null,null,null,"[PR91] Genotoxicidad",null,null,null,null,"[ST1] Tejido sobrante de la identificación de un animal por perforación auricular",null,null,null,null,null,null,null,null,null,null,null,null,null,null,null,null,null,null,null,null,"Guardar",null,null,null,"Seleccionar"]
["[PB8] ","[PB8] (Investigación básica) Sistema urogenital/reproductor",null,null,null,null,null,null,null,"A8","Conejo (Oryctolagus cuniculus)",null,"[A8] Conejo (Oryctolagus cuniculus)",null,null,null,null,null,null,"Estonia",null,null,null,null,null,null,null,null,null,"[LT8] Legislación sobre los alimentos para animales, incluída la relativa a la seguridad de los animales diana, de los trabajadores y del entorno",null,null,null,null,null,null,null,null,null,null,null,null,null,null,null,null,null,null,null,null,null,null,null,null,null,null,null,null,null,null,null,null,null,null,null,null,null,null,2028,null,null,"[PF43] Investigaciones forenses","[PB8] Sistema urogenital/reproductor","[PT28] Enfermedades inmunológicas humanas",null,null,null,null,"[PR92] Toxicidad reproductiva",null,null,null,null,"[ST2] Tejido sobrante de la identificación de un animal por recorte de dedos ",null,null,null,null,null,null,null,null,null,null,null,null,null,null,null,null,null,null,null,null,"Guardar y duplicar",null,null,null,"Fin de la Selección"]
["[PB9] ","[PB9] (Investigación básica) Órganos sensoriales (piel, ojos y oídos)",null,null,null,null,null,null,null,"A9","Gato (Felis catus)",null,"[A9] Gato (Felis catus)",null,null,null,null,null,null,"Finlandia",null,null,null,null,null,null,null,null,null,"[LT9] Legislación sobre cosméticos",null,null,null,null,null,null,null,null,null,null,null,null,null,null,null,null,null,null,null,null,null,null,null,null,null,null,null,null,null,null,null,null,null,null,null,null,null,null,2029,null,null,"[PG43] Mantenimiento de colonias de animales genéticamente alteradas establecidos, no utilizados en otros procedimientos","[PB9] Órganos sensoriales (piel, ojos y oídos)","[PT29] Enfermedades humanas urogenitales y del aparato reproductor",null,null,null,null,"[PR93] Toxicidad del desarrollo",null,null,null,null,"[NG1] Genotipado no invasivo: muestra de pelo",null,null,null,null,null,null,null,null,null,null,null,null,null,null,null,null,null,null,null,null,"Cancelar"]
["[PB10]","[PB10] (Investigación básica) Sistema endocrino/ metabolismo ",null,null,null,null,null,null,null,"A10","Perro (Canis familiaris)",null,"[A10] Perro (Canis familiaris)",null,null,null,null,null,null,"Francia",null,null,null,null,null,null,null,null,null,"[LT10] Otra legislación",null,null,null,null,null,null,null,null,null,null,null,null,null,null,null,null,null,null,null,null,null,null,null,null,null,null,null,null,null,null,null,null,null,null,null,null,null,null,2030,null,null,"[PN107] Fines ajenos a la UE","[PB10] Sistema endocrino/ metabolismo","[PT30] Enfermedades humanas de los órganos de los sentidos (piel, ojos y oídos)",null,null,null,null,"[PR94] Neurotoxicidad",null,null,null,null,"[NG2] Genotipado no invasivo observación bajo iluminación específica",null,null,null,null,null,null,null,null,null,null,null,null,null,null,null,null,null,null,null,null,"Contenido de la fila"]
[{"$f":"MID(B12,1,6)","v":"[PB14]"},"[PB14] (Investigación básica) Biología del desarrollo",null,null,null,null,null,null,null,"A11","Hurón (Mustela putorius furo)",null,"[A11] Hurón (Mustela putorius furo)",null,null,null,null,null,null,"Alemania",null,null,null,null,null,null,null,null,null,null,null,null,null,null,null,null,null,null,null,null,null,null,null,null,null,null,null,null,null,null,null,null,null,null,null,null,null,null,null,null,null,null,null,null,null,null,null,null,2031,null,null,null,"[PB14] Biología del desarrollo","[PT31]Enfermedades endocrinas y metabólicas humanas",null,null,null,null,"[PR95] Cinética (farmacocinética, toxicocinética, eliminación de residuos)",null,null,null,null,"[NG3] Genotipado no invasivo: realizado post mortem",null,null,null,null,null,null,null,null,null,null,null,null,null,null,null,null,null,null,null,null,"Formulario de usos de animales"]
["[PB11]","[PB11] (Investigación básica) Multisistémico",null,null,null,null,null,null,null,"A12","Otros carnívoros (otros Carnivora)",null,"[A12] Otros carnívoros (otros Carnivora)",null,null,null,null,null,null,"Grecia",null,null,null,null,null,null,null,null,null,null,null,null,null,null,null,null,null,null,null,null,null,null,null,null,null,null,null,null,null,null,null,null,null,null,null,null,null,null,null,null,null,null,null,null,null,null,null,null,2032,null,null,null,"[PB11] Multisistémico","[PT32] Otras enfermedades  humanas",null,null,null,null,"[PR96] Farmacodinámica (incluida la farmacología de seguridad)",null,null,null,null,"[NG4] Genotipado no invasivo: otros métodos",null,null,null,null,null,null,null,null,null,null,null,null,null,null,null,null,null,null,null,null,"Buscar"]
["[PB12]","[PB12] (Investigación básica) Etología / Comportamiento animal  /Biología animal ",null,null,null,null,null,null,null,"A13","Caballos, burros y sus cruces (Equidae)",null,"[A13] Caballos, burros y sus cruces (Equidae)",null,null,null,null,null,null,"Hungria",null,null,null,null,null,null,null,null,null,null,null,null,null,null,null,null,null,null,null,null,null,null,null,null,null,null,null,null,null,null,null,null,null,null,null,null,null,null,null,null,null,null,null,null,null,null,null,null,2033,null,null,null,"[PB12] Etología / Comportamiento animal  /Biología animal","[PT33] Enfermedades de los animales",null,null,null,null,"[PR97] Fototoxicidad"]
["[PB13]","[PB13] (Investigación básica) Otros",null,null,null,null,null,null,null,"A14","Cerdo (Sus scrofa domesticus)",null,"[A14] Cerdo (Sus scrofa domesticus)",null,null,null,null,null,null,"Irlanda",null,null,null,null,null,null,null,null,null,null,null,null,null,null,null,null,null,null,null,null,null,null,null,null,null,null,null,null,null,null,null,null,null,null,null,null,null,null,null,null,null,null,null,null,null,null,null,null,null,null,null,null,"[PB13] Otros","[PT38] Nutrición animal",null,null,null,null,"Ecotoxicidad"]
["[PT21]","[PT21] (Investigación traslacional y aplicada) Cáncer humano",null,null,null,null,null,null,null,"A15","Cabra (Capra aegagrus hircus)",null,"[A15] Cabra (Capra aegagrus hircus)",null,null,null,null,null,null,"Italia",null,null,null,null,null,null,null,null,null,null,null,null,null,null,null,null,null,null,null,null,null,null,null,null,null,null,null,null,null,null,null,null,null,null,null,null,null,null,null,null,null,null,null,null,null,null,null,null,null,null,null,null,null,"[PT34]  Bienestar de los animales",null,null,null,null,"[PR104] Ensayos de seguridad en el ámbito de la alimentación humana y animal"]
["[PT22]","[PT22] (Investigación traslacional y aplicada) Enfermedades infecciosas humanas ",null,null,null,null,null,null,null,"A16","Oveja (Ovis aries)",null,"[A16] Oveja (Ovis aries)",null,null,null,null,null,null,"Letonia",null,null,null,null,null,null,null,null,null,null,null,null,null,null,null,null,null,null,null,null,null,null,null,null,null,null,null,null,null,null,null,null,null,null,null,null,null,null,null,null,null,null,null,null,null,null,null,null,null,null,null,null,null,"[PT35] Diagnóstico de enfermedades",null,null,null,null,"[PR105] Seguridad de los animales diana"]
["[PT23]","[PT23] (Investigación traslacional y aplicada) Enfermedades cardiovasculares humanas",null,null,null,null,null,null,null,"A17","Bovinos (Bos primigenius)",null,"[A17] Bovinos (Bos primigenius)",null,null,null,null,null,null,"Lituania",null,null,null,null,null,null,null,null,null,null,null,null,null,null,null,null,null,null,null,null,null,null,null,null,null,null,null,null,null,null,null,null,null,null,null,null,null,null,null,null,null,null,null,null,null,null,null,null,null,null,null,null,null,"[PT36] Enfermedades de las plantas",null,null,null,null,"[PR107] Puntos finales combinados"]
["[PT24]","[PT24] (Investigación traslacional y aplicada) Enfermedades nerviosas y mentales humanas ",null,null,null,null,null,null,null,"A18","Prosimios (Prosimia)",null,"[A18] Prosimios (Prosimia)",null,null,null,null,null,null,"Luxemburgo",null,null,null,null,null,null,null,null,null,null,null,null,null,null,null,null,null,null,null,null,null,null,null,null,null,null,null,null,null,null,null,null,null,null,null,null,null,null,null,null,null,null,null,null,null,null,null,null,null,null,null,null,null,"[PT37] Toxicología y ecotoxicología no reglamentarias",null,null,null,null,"[PR106] Otros ensayos de toxicidad o de seguridad"]
["[PT25]","[PT25] (Investigación traslacional y aplicada) Enfermedades respiratorias humanas",null,null,null,null,null,null,null,"A19","Titís y tamarinos (eg. Callithrix jacchus)",null,"[A19] Titís y tamarinos (eg. Callithrix jacchus)",null,null,null,null,null,null,"Malta"]
["[PT26]","[PT26] (Investigación traslacional y aplicada) Enfermedades gastrointestinales humanas, incluidas las hepáticas",null,null,null,null,null,null,null,"A20","Macacos cangrejeros (Macaca fascicularis)",null,"[A20] Macacos cangrejeros (Macaca fascicularis)",null,null,null,null,null,null,"Países Bajos"]
["[PT27]","[PT27] (Investigación traslacional y aplicada) Enfermedades musculoesqueléticas humanas",null,null,null,null,null,null,null,"A21","Macacos Rhesus  (Macaca mulatta)",null,"[A21] Macacos Rhesus  (Macaca mulatta)",null,null,null,null,null,null,"Polonia"]
[{"$f":"MID(B23,1,6)","v":"[PT28]"},"[PT28] (Investigación traslacional y aplicada) Enfermedades inmunológicas humanas",null,null,null,null,null,null,null,"A22","Macacos verdess spp. (normalmente pygerythrus or sabaeus)",null,{"$f":"CONCATENATE(\"[\",J23,\"] \",K23)","v":"[A22] Macacos verdess spp. (normalmente pygerythrus or sabaeus)"},null,null,null,null,null,null,"Portugal"]
["[PT29]","[PT29] (Investigación traslacional y aplicada) Enfermedades humanas urogenitales y del aparato reproductor",null,null,null,null,null,null,null,"A23","Babuinos (Papio spp.)",null,{"$f":"CONCATENATE(\"[\",J24,\"] \",K24)","v":"[A23] Babuinos (Papio spp.)"},null,null,null,null,null,null,"Rumania"]
["[PT30]","[PT30] (Investigación traslacional y aplicada) Enfermedades humanas de los órganos de los sentidos (piel, ojos y oídos)",null,null,null,null,null,null,null,"A24","Samiris dorsirrojos (eg. Saimiri sciureus)",null,{"$f":"CONCATENATE(\"[\",J25,\"] \",K25)","v":"[A24] Samiris dorsirrojos (eg. Saimiri sciureus)"},null,null,null,null,null,null,"Eslovaquia"]
["[PT31]","[PT31] (Investigación traslacional y aplicada) Enfermedades endocrinas y metabólicas humanas",null,null,null,null,null,null,null,"A25-1","Otras especies de simios del Viejo Mundo (Cercopithecoidea)",null,{"$f":"CONCATENATE(\"[\",J26,\"] \",K26)","v":"[A25-1] Otras especies de simios del Viejo Mundo (Cercopithecoidea)"},null,null,null,null,null,null,"Eslovenia"]
["[PT32]","[PT32] (Investigación traslacional y aplicada) Otras enfermedades humanas",null,null,null,null,null,null,null,"A25-2","Otras especies de simios del Nuevo Mundo (Ceboidea)",null,{"$f":"CONCATENATE(\"[\",J27,\"] \",K27)","v":"[A25-2] Otras especies de simios del Nuevo Mundo (Ceboidea)"},null,null,null,null,null,null,"España"]
["[PT33]","[PT33] (Investigación traslacional y aplicada) Enfermedades de los animales",null,null,null,null,null,null,null,"A26","Simios antropoides (Hominoidea)",null,"[A26] Simios antropoides (Hominoidea)",null,null,null,null,null,null,"Suecia"]
["[PT38]","[PT38] (Investigación traslacional y aplicada) Nutrición animal ",null,null,null,null,null,null,null,"A27","Otros mamíferos (otros Mammalia)",null,"[A27] Otros mamíferos (otros Mammalia)",null,null,null,null,null,null,"Reino Unido"]
["[PT34]","[PT34] (Investigación traslacional y aplicada) Bienestar de los animales",null,null,null,null,null,null,null,"A28","Aves de corral (Gallus gallus domesticus)",null,"[A28] Aves de corral (Gallus gallus domesticus)",null,null,null,null,null,null," "]
["[PT35]","[PT35] (Investigación traslacional y aplicada) Diagnóstico de enfermedades",null,null,null,null,null,null,null,"A37","Pavos (Meleagris gallopavo)",null,"[A37] Pavos (Meleagris gallopavo)",null,null,null,null,null,null," "]
["[PT36]","[PT36] (Investigación traslacional y aplicada) Enfermedades de las plantas",null,null,null,null,null,null,null,"A29","Otras aves (otros Aves)",null,"[A29] Otras aves (otros Aves)",null,null,null,null,null,null," "]
["[PT37]","[PT37] (Investigación traslacional y aplicada) Toxicología y ecotoxicología no reglamentarias",null,null,null,null,null,null,null,"A30","Reptiles (Reptilia)",null,"[A30] Reptiles (Reptilia)",null,null,null,null,null,null," "]
["[PE40]","[PE40] Proteción del medio ambiente natural en interés de la salud o el bienestar de los seres humanos o de los animales",null,null,null,null,null,null,null,"A31","Rana (Rana temporaria y Rana pipiens)",null,"[A31] Rana (Rana temporaria y Rana pipiens)",null,null,null,null,null,null," "]
["[PS41]","[PS41] Preservación de especies",null,null,null,null,null,null,null,"A32","Xenopus (Xenopus laevis y Xenopus tropicalis)",null,"[A32] Xenopus (Xenopus laevis y Xenopus tropicalis)",null,null,null,null,null,null," "]
[{"$f":"MID(B36,1,8)","v":"[PE42-1]"},"[PE42-1] Enseñanza superior",null,null,null,null,null,null,null,"A33","Other amphibians (other Amphibia)",null,"[A33] Other amphibians (other Amphibia)",null,null,null,null,null,null," "]
[{"$f":"MID(B37,1,8)","v":"[PE42-2]"},"[PE42-2] Formación para la adquisición, mantenimiento o mejora de las aptitudes profesionaless",null,null,null,null,null,null,null,"A34","Pez cebra (Danio rerio)",null,"[A34] Pez cebra (Danio rerio)",null,null,null,null,null,null," "]
[{"$f":"MID(B38,1,6)","v":"[PF43]"},"[PF43] Investigaciones medicolegales",null,null,null,null,null,null,null,"A38","Lubina (spp. De las familias e.g. Serranidae, Moronidae, por ejemplo)",null,"[A38] Lubina (spp. De las familias e.g. Serranidae, Moronidae, por ejemplo)",null,null,null,null,null,null," "]
["[PG43]","[PG43] Mantenimiento de colonias de animales genéticamente alterados establecidas, no utilizados en otros procedimientos",null,null,null,null,null,null,null,"A39","Salmones, truchas, savelinos y tímalos  (Salmonidos)",null,"[A39] Salmones, truchas, savelinos y tímalos  (Salmonidos)",null,null,null,null,null,null," "]
["[PR51]","[PR51] (Utilización reglamentaria/ Produccion rutinaria) Productos sanguíneos",null,null,null,null,null,null,null,"A40","Gupis, xiphos, molis, platis (Poecilidae)",null,"[A40] Gupis, xiphos, molis, platis (Poecilidae)",null,null,null,null,null,null," "]
["[PR52]","[PR52] (Utilización reglamentaria/ Produccion rutinaria) Anticuerpos monoclonales por método de ascitis (únicamente)",null,null,null,null,null,null,null,"A35","Otros peces (otros Pisces)",null,"[A35] Otros peces (otros Pisces)",null,null,null,null,null,null," "]
["[PR54]","[PR54] (Utilización reglamentaria/ Produccion rutinaria) Anticuerpos monoclonales y policlonales (excluido el método de asicitis)",null,null,null,null,null,null,null,"A36","Cephalopodos (Cephalopoda)",null,"[A36] Cephalopodos (Cephalopoda)",null,null,null,null,null,null," "]
["[PR53]","[PR53] (Utilización reglamentaria/ Produccion rutinaria) Otros productos",null,null,null,null,null,null,null," ",null,null,null,null,null,null,null,null,null," "]
["[PR61]","[PR61] (Utilización reglamentaria/control de calidad) Ensayos de seguridad de los lotes",null,null,null,null,null,null,null," ",null,null,null,null,null,null,null,null,null," "]
["[PR62]","[PR62] (Utilización reglamentaria/control de calidad) Ensayos de pirogenicidad",null,null,null,null,null,null,null," ",null,null,null,null,null,null,null,null,null," "]
["[PR63]","[PR63] (Utilización reglamentaria/control de calidad) Ensayos de potencia de los lotes",null,null,null,null,null,null,null," ",null,null,null,null,null,null,null,null,null," "]
["[PR64]","[PR64] (Utilización reglamentaria/control de calidad) Otros controles de calidad",null,null,null,null,null,null,null," ",null,null,null,null,null,null,null,null,null," "]
["[PR71]","[PR71] (Utilización reglamentaria) Otros controles de eficacia y tolerancia.",null,null,null,null,null,null,null," ",null,null,null,null,null,null,null,null,null," "]
["[PR81]","[PR81] (Utilización reglamentaria/Toxicidad y seguridad/aguda y sub-aguda) LD50, LC50",null,null,null,null,null,null,null," ",null,null,null,null,null,null,null,null,null," "]
["[PR82]","[PR82] (Utilización reglamentaria/Toxicidad y seguridad/aguda y subaguda) Otros métodos letales",null,null,null,null,null,null,null," ",null,null,null,null,null,null,null,null,null," "]
["[PR83]","[PR83] Utilización reglamentaria/Toxicidad y seguridad/Aguda y subaguda) Métodos no letales",null,null,null,null,null,null,null," ",null,null,null,null,null,null,null,null,null," "]
["[PR84]","[PR84] (Utilización reglamentaria/Toxicidad y seguridad) Irritación/corrosión cutánea",null,null,null,null,null,null,null," ",null,null,null,null,null,null,null,null,null," "]
["[PR85]","[PR85] (Utilización reglamentaria/Toxicidad y seguridad) Sensibilización cutánea",null,null,null,null,null,null,null," ",null,null,null,null,null,null,null,null,null," "]
["[PR86]","[PR86] (Utilización reglamentaria/Toxicidad y seguridad) Irritación/corrosión ocular",null,null,null,null,null,null,null," ",null,null,null,null,null,null,null,null,null," "]
["[PR87]","[PR87] (Utilización reglamentaria/Toxicidad y seguridad/Toxicidad por dosis repetidas (hasta 28 días)",null,null,null,null,null,null,null," ",null,null,null,null,null,null,null,null,null," "]
["[PR88]","[PR88] (Utilización reglamentaria/Toxicidad y seguridad/Toxicidad por dosis repetidas (entre 29 y 90 días)",null,null,null,null,null,null,null," ",null,null,null,null,null,null,null,null,null," "]
["[PR89]","[PR89] (Utilización reglamentaria/Toxicidad y seguridad/Toxicidad por dosis repetidas (más de 90 días)",null,null,null,null,null,null,null," ",null,null,null,null,null,null,null,null,null," "]
["[PR90]","[PR90] (Utilización reglamentaria/Toxicidad y seguridad) Carcinogenicdad",null,null,null,null,null,null,null," ",null,null,null,null,null,null,null,null,null," "]
["[PR91]","[PR91] (Utilización reglamentaria/Toxicidad y seguridad) Genotoxicidad",null,null,null,null,null,null,null," ",null,null,null,null,null,null,null,null,null," "]
["[PR92]","[PR92] (Utilización reglamentaria/Toxicidad y seguridad) Toxicidad para la reproducción",null,null,null,null,null,null,null," ",null,null,null,null,null,null,null,null,null," "]
["[PR93]","[PR93] (Utilización reglamentaria/Toxicidad y seguridad) Toxicidad para el desarrollo",null,null,null,null,null,null,null," ",null,null,null,null,null,null,null,null,null," "]
["[PR94]","[PR94] (Utilización reglamentaria/Toxicidad y seguridad) Neurotoxicidad",null,null,null,null,null,null,null," ",null,null,null,null,null,null,null,null,null," "]
["[PR95]","[PR95] (Utilización reglamentaria/Toxicidad y seguridad) Cinética (farmacocinética, toxicocinética, eliminación de residuos)",null,null,null,null,null,null,null," ",null,null,null,null,null,null,null,null,null," "]
["[PR96]","[PR96] (Utilización reglamentaria/Toxicidad y seguridad) Farmacodinámica (incluida la farmacología de seguridad)",null,null,null,null,null,null,null," ",null,null,null,null,null,null,null,null,null," "]
["[PR97]","[PR97] (Utilización reglamentaria/Toxicidad y seguridad) Fototoxicidad",null,null,null,null,null,null,null," ",null,null,null,null,null,null,null,null,null," "]
["[PR98]","[PR98] (Utilización reglamentaria/Toxicidad y seguridad/Ecotoxicidad) Toxicidad aguda",null,null,null,null,null,null,null," ",null,null,null,null,null,null,null,null,null," "]
["[PR99]","[PR99] (Utilización reglamentaria/Toxicidad y seguridad/Ecotoxicidad) Toxicidad crónica",null,null,null,null,null,null,null," ",null,null,null,null,null,null,null,null,null," "]
[{"$f":"MID(B68,1,7)","v":"[PR100]"},"[PR100] (Utilización reglamentaria/Toxicidad y seguridad/Ecotoxicidad) Toxicidad reproductiva",null,null,null,null,null,null,null," ",null,null,null,null,null,null,null,null,null," "]
[{"$f":"MID(B69,1,7)","v":"[PR101]"},"[PR101] (Utilización reglamentaria/Toxicidad y seguridad/Ecotoxicidad) Actividad endocrina",null,null,null,null,null,null,null," ",null,null,null,null,null,null,null,null,null," "]
["[PR102]","[PR102] (Utilización reglamentaria/Toxicidad y seguridad/Ecotoxicidad) Bioacumulación",null,null,null,null,null,null,null," ",null,null,null,null,null,null,null,null,null," "]
["[PR103]","[PR103] Utilización reglamentaria/Toxicidad y seguridad/Ecotoxicidad) Otros",null,null,null,null,null,null,null," ",null,null,null,null,null,null,null,null,null," "]
["[PR104]","[PR104] (Utilización reglamentaria/Toxicidad y seguridad) Ensayos de seguridad en el ámbito de la alimentación humana y animal",null,null,null,null,null,null,null," ",null,null,null,null,null,null,null,null,null," "]
["[PR105]","[PR105] (Utilización reglamentaria/Toxicidad y seguridad) Seguridad de los animales diana",null,null,null,null,null,null,null," ",null,null,null,null,null,null,null,null,null," "]
["[PR107]","[PR107] (Utilización reglamentaria/Toxicidad y seguridad) Puntos finales combinados",null,null,null,null,null,null,null," ",null,null,null,null,null,null,null,null,null," "]
["[PR106]","[PR106] (Utilización reglamentaria/Toxicidad y seguridad) Otros ensayos de toxicidad y seguridad",null,null,null,null,null,null,null," ",null,null,null,null,null,null,null,null,null," "]
["[PN107]","[PN107] Fines ajenos a la UE",null,null,null,null,null,null,null," ",null,null,null,null,null,null,null,null,null," "]
[null,null,null,null,null,null,null,null,null," "]
[null,null,null,null,null,null,null,null,null," "]
[null,null,null,null,null,null,null,null,null," "]

{"sheet":"Validation","index":2,"n_rows":8,"n_cols":2,"rows_kept":8,"cut":false,"hidden":false,"merged":[[2,1,5,6],[7,1,10,6]]}
[]
[]
[null,"If you want to check your data inside \"Animal use details\", click [Validate], then fix these errors (if any) and click again [Validate]."]
[]
[]
[]
[]
[null,"Click [Clean Validation], if you want to clean the red colour in your cells caused by validation errors."]